[Event "POR-chT 1st League 2017"]
[Site "Leiria"]
[Date "2017.07.18"]
[Round "2"]
[White "Ulyanovskyy, Viktor"]
[Black "Lombaers, Peter"]
[Result "1/2-1/2"]
[ECO "B20"]
[WhiteElo "2219"]
[BlackElo "2327"]
[Annotator "NA"]
[PlyCount "57"]
[EventDate "2017.??.??"]
[EventType "team-tourn"]
[EventCountry "POR"]
[SourceTitle "playchess.com"]
[Source "ChessBase"]
[SourceQuality "1"]
[TimeControl "5400+30"]

1. e4 {[%emt 0:00:00]} c5 {[%emt 0:00:51]} 2. c4 {[%emt 0:01:10]} Nc6 {[%emt 0:01:43]} 3. Nc3 {[%emt 0:08:46]} g6 {[%emt 0:01:42]} 4. g3 {[%emt 0:00:06]} a6 {[%emt 0:03:51]} 5. Bg2 {[%emt 0:00:36]} b5 {[%emt 0:01:43]} 6. d3 {[%emt 0:00:50]} Bg7 {[%emt 0:01:17]} 7. Nge2 {[%emt 0:00:21]} b4 {[%emt 0:06:17]} 8. Na4 {[%emt 0:10:56]} d6 {[%emt 0:01:24]} 9. e5 {[%emt 0:02:10]} Bd7 {[%emt 0:03:58]} 10. exd6 {[%emt 0:00:10]} exd6 {[%emt 0:00:24]} 11. Bf4 {[%emt 0:03:15]} Ne5 {[%emt 0:08:02]} 12. Nb6 {[%emt 0:02:24]} Rb8 {[%emt 0:09:02]} 13. Nxd7 {[%emt 0:03:36]} Qxd7 {[%emt 0:00:07]} 14. O-O {[%emt 0:01:50]} Ne7 15. Qc2 {[%emt 0:17:50]} O-O {[%emt 0:07:06]} 16. Rad1 {[%emt 0:04:19]} N5c6 {[%emt 0:07:00]} 17. Qc1 {[%emt 0:03:33]} Rfe8 {[%emt 0:02:26]} 18. Rfe1 {[%emt 0:00:32]} Nf5 {[%emt 0:04:34]} 19. Bh3 {[%emt 0:01:13]} Re7 {[%emt 0:03:56]} 20. Bg5 {[%emt 0:01:18]} Rxe2 21. Rxe2 {[%emt 0:00:30]} Nfd4 22. Bxd7 {[%emt 0:00:30]} Nxe2+ 23. Kf1 Nxc1 24. Bxc1 {[%emt 0:09:05]} Nd4 {[%emt 0:10:00]} 25. b3 {[%emt 0:07:07]} Rd8 {[%emt 0:02:15]} 26. Ba4 {[%emt 0:01:44]} h6 {[%emt 0:03:34]} 27. h3 {[%emt 0:00:28]} Ne6 {[%emt 0:07:43]} 28. Bc6 {[%emt 0:02:26]} Nd4 {[%emt 0:01:09]} 29. Ba4 {[%emt 0:01:23]} 1/2-1/2

[Event "POR-chT 1st League 2017"]
[Site "Leiria"]
[Date "2017.07.18"]
[Round "2"]
[White "Carneiro, Carlos"]
[Black "Cavaleiro, Daniel Felipe Costa"]
[Result "0-1"]
[ECO "E17"]
[WhiteElo "2175"]
[BlackElo "2006"]
[Annotator "NA"]
[PlyCount "122"]
[EventDate "2017.??.??"]
[EventType "team-tourn"]
[EventCountry "POR"]
[SourceTitle "playchess.com"]
[Source "ChessBase"]
[SourceQuality "1"]
[TimeControl "5400+30"]

1. d4 {[%emt 0:03:50]} Nf6 {[%emt 0:01:18]} 2. c4 {[%emt 0:00:09]} e6 {[%emt 0:00:11]} 3. Nf3 {[%emt 0:00:13]} b6 {[%emt 0:00:40]} 4. g3 {[%emt 0:00:11]} Bb7 {[%emt 0:00:29]} 5. Bg2 {[%emt 0:00:08]} Be7 {[%emt 0:01:23]} 6. O-O {[%emt 0:00:13]} O-O {[%emt 0:03:30]} 7. d5 {[%emt 0:02:55]} exd5 8. Nh4 c6 {[%emt 0:24:30]} 9. cxd5 {[%emt 0:02:08]} Nxd5 {[%emt 0:04:05]} 10. Nf5 {[%emt 0:01:05]} Nf6 11. e4 {[%emt 0:02:26]} d5 12. e5 {[%emt 0:02:52]} Nfd7 {[%emt 0:25:21]} 13. f4 {[%emt 0:19:00]} g6 {[%emt 0:04:36]} 14. Nxe7+ {[%emt 0:03:32]} Qxe7 {[%emt 0:00:16]} 15. Nc3 Na6 16. Kh1 {[%emt 0:06:51]} Nc7 {[%emt 0:06:22]} 17. Bd2 {[%emt 0:24:38]} Ne8 {[%emt 0:01:19]} 18. f5 {[%emt 0:04:22]} Qxe5 {[%emt 0:05:56]} 19. Qg4 {[%emt 0:00:51]} Nef6 {[%emt 0:08:30]} 20. Qh4 {[%emt 0:05:16]} Ba6 21. Rae1 Qd6 {[%emt 0:04:57]} 22. Bf4 {[%emt 0:03:44]} Qc5 {[%emt 0:01:06]} 23. Be3 {[%emt 0:08:02]} Qd6 {[%emt 0:00:27]} 24. Bf4 {[%emt 0:01:33]} Qb4 {[%emt 0:01:03]} 25. Rf2 {[%emt 0:00:58]} Rfe8 {[%emt 0:00:13]} 26. Rg1 {[%emt 0:00:14]} Nh5 {[%emt 0:01:34]} 27. fxg6 {[%emt 0:01:48]} hxg6 {[%emt 0:01:47]} 28. Qg5 {[%emt 0:01:45]} Nxf4 29. gxf4 {[%emt 0:00:23]} Qe7 {[%emt 0:01:43]} 30. Qh6 {[%emt 0:01:32]} Qf8 {[%emt 0:00:55]} 31. Qh4 {[%emt 0:00:24]} Qg7 {[%emt 0:01:48]} 32. Bh3 {[%emt 0:00:30]} Nc5 {[%emt 0:00:30]} 33. f5 {[%emt 0:00:30]} Bd3 {[%emt 0:00:30]} 34. Rfg2 {[%emt 0:00:30]} d4 35. Rxg6 {[%emt 0:02:47]} Qxg6 {[%emt 0:01:00]} 36. Rxg6+ {[%emt 0:00:03]} fxg6 {[%emt 0:00:08]} 37. fxg6 {[%emt 0:00:06]} Bxg6 {[%emt 0:00:26]} 38. Qxd4 {[%emt 0:00:20]} Rad8 {[%emt 0:00:49]} 39. Qf6 {[%emt 0:01:03]} Kh7 {[%emt 0:01:14]} 40. Qxc6 {[%emt 0:01:52]} Rd2 {[%emt 0:00:57]} 41. Qc7+ {[%emt 0:00:34]} Nd7 {[%emt 0:00:43]} 42. Qg3 {[%emt 0:00:24]} Nf6 {[%emt 0:00:16]} 43. Bf1 {[%emt 0:00:40]} Nh5 {[%emt 0:00:43]} 44. Qc7+ {[%emt 0:00:37]} Kh6 {[%emt 0:00:15]} 45. Kg1 {[%emt 0:00:52]} Rg8 {[%emt 0:00:25]} 46. Bc4 {[%emt 0:00:34]} Rf8 {[%emt 0:00:31]} 47. Ne2 {[%emt 0:00:21]} Be4 {[%emt 0:00:53]} 48. Nc3 Bg2 {[%emt 0:00:16]} 49. Qe7 {[%emt 0:00:57]} Rdf2 {[%emt 0:00:31]} 50. Qe3+ {[%emt 0:00:38]} Nf4 {[%emt 0:00:29]} 51. Nd1 Rf3 {[%emt 0:00:24]} 52. Qd2 {[%emt 0:00:54]} Rf6 {[%emt 0:00:35]} 53. Nf2 {[%emt 0:00:13]} Rg6 {[%emt 0:00:40]} 54. Bf7 {[%emt 0:00:46]} Rg5 {[%emt 0:00:32]} 55. h4 {[%emt 0:00:11]} Rg7 {[%emt 0:00:39]} 56. Qd6+ {[%emt 0:00:50]} Kh7 {[%emt 0:00:10]} 57. Bc4 Bh3+ {[%emt 0:00:21]} 58. Kh1 {[%emt 0:00:58]} Rxf2 {[%emt 0:00:26]} 59. Bd3+ {[%emt 0:00:15]} Nxd3 {[%emt 0:00:17]} 60. Qxd3+ {[%emt 0:00:03]} Bf5 {[%emt 0:00:13]} 61. Qe3 {[%emt 0:00:23]} Rxb2 {[%emt 0:01:01]} 0-1

[Event "POR-chT 1st League 2017"]
[Site "Leiria"]
[Date "2017.07.18"]
[Round "2"]
[White "Neto, Horacio"]
[Black "Barrero Garcia, Carlos"]
[Result "0-1"]
[ECO "E81"]
[WhiteElo "2162"]
[BlackElo "2309"]
[Annotator "NA"]
[PlyCount "56"]
[EventDate "2017.??.??"]
[EventType "team-tourn"]
[EventCountry "POR"]
[SourceTitle "playchess.com"]
[Source "ChessBase"]
[SourceQuality "1"]
[TimeControl "5400+30"]

1. d4 {[%emt 0:00:00]} Nf6 {[%emt 0:03:41]} 2. c4 {[%emt 0:00:00]} g6 {[%emt 0:00:07]} 3. Nc3 {[%emt 0:00:00]} Bg7 {[%emt 0:00:09]} 4. e4 {[%emt 0:00:20]} d6 {[%emt 0:00:11]} 5. f3 {[%emt 0:01:38]} O-O {[%emt 0:00:13]} 6. Nge2 {[%emt 0:01:28]} c5 {[%emt 0:01:46]} 7. d5 {[%emt 0:00:14]} e6 {[%emt 0:00:21]} 8. Ng3 {[%emt 0:01:01]} exd5 {[%emt 0:00:29]} 9. cxd5 {[%emt 0:00:04]} a6 {[%emt 0:00:31]} 10. a4 {[%emt 0:00:09]} Nh5 {[%emt 0:01:30]} 11. Nxh5 {[%emt 0:09:27]} gxh5 {[%emt 0:00:11]} 12. Be3 {[%emt 0:02:07]} f5 13. Qd2 Qf6 {[%emt 0:05:43]} 14. exf5 {[%emt 0:31:18]} Bxf5 {[%emt 0:00:35]} 15. Be2 {[%emt 0:00:32]} Nd7 {[%emt 0:03:27]} 16. O-O {[%emt 0:01:52]} Rae8 17. Rae1 {[%emt 0:13:36]} Qg6 {[%emt 0:04:39]} 18. Kh1 {[%emt 0:02:37]} Ne5 19. Ne4 {[%emt 0:14:24]} Bxe4 {[%emt 0:07:13]} 20. fxe4 Qxe4 {[%emt 0:01:10]} 21. Bxh5 {[%emt 0:08:11]} Rxf1+ {[%emt 0:02:46]} 22. Rxf1 {[%emt 0:00:01]} Nc4 {[%emt 0:00:20]} 23. Qe2 {[%emt 0:06:09]} Nxe3 {[%emt 0:00:36]} 24. Bxe8 {[%emt 0:01:00]} Qxe8 {[%emt 0:00:19]} 25. Rf3 {[%emt 0:01:41]} Bd4 {[%emt 0:00:11]} 26. b3 {[%emt 0:02:24]} Qe4 {[%emt 0:01:15]} 27. Rg3+ {[%emt 0:00:51]} Kh8 {[%emt 0:00:13]} 28. Qe1 {[%emt 0:00:57]} Ng4 {[%emt 0:00:28]} 0-1

[Event "POR-chT 1st League 2017"]
[Site "Leiria"]
[Date "2017.07.19"]
[Round "4"]
[White "Polaczek, Richard"]
[Black "Sousa, Andre Ventura"]
[Result "1/2-1/2"]
[ECO "D37"]
[WhiteElo "2406"]
[BlackElo "2368"]
[Annotator "NA"]
[PlyCount "70"]
[EventDate "2017.??.??"]
[EventType "team-tourn"]
[EventCountry "POR"]
[SourceTitle "playchess.com"]
[Source "ChessBase"]
[SourceQuality "1"]
[TimeControl "5400+30"]

1. d4 {[%emt 0:00:44]} Nf6 {[%emt 0:00:04]} 2. Nf3 {[%emt 0:00:09]} d5 {[%emt 0:00:11]} 3. c4 {[%emt 0:01:18]} e6 {[%emt 0:00:03]} 4. Nc3 {[%emt 0:01:36]} dxc4 {[%emt 0:00:04]} 5. Qa4+ {[%emt 0:02:01]} c6 {[%emt 0:00:04]} 6. Qxc4 {[%emt 0:00:18]} b5 {[%emt 0:00:02]} 7. Qd3 {[%emt 0:01:16]} a6 {[%emt 0:00:03]} 8. e4 {[%emt 0:00:27]} c5 {[%emt 0:03:02]} 9. dxc5 {[%emt 0:02:14]} Bxc5 {[%emt 0:01:22]} 10. e5 {[%emt 0:02:37]} Ng4 {[%emt 0:08:59]} 11. Qxd8+ {[%emt 0:14:31]} Kxd8 {[%emt 0:00:06]} 12. Bg5+ {[%emt 0:00:11]} Ke8 {[%emt 0:04:27]} 13. Ne4 {[%emt 0:05:09]} Bb4+ {[%emt 0:00:24]} 14. Bd2 {[%emt 0:22:45]} Bxd2+ {[%emt 0:01:17]} 15. Nexd2 {[%emt 0:00:50]} Nc6 {[%emt 0:04:40]} 16. a4 {[%emt 0:00:31]} Rb8 {[%emt 0:01:21]} 17. axb5 {[%emt 0:00:15]} axb5 {[%emt 0:00:03]} 18. Rc1 {[%emt 0:00:33]} Ncxe5 $15 {[%emt 0:06:06]} 19. Nxe5 {[%emt 0:05:20]} Nxe5 {[%emt 0:00:05]} 20. Rc5 {[%emt 0:00:36]} Nd7 {[%emt 0:15:38]} 21. Bxb5 {[%emt 0:00:30]} Ke7 {[%emt 0:00:30]} 22. Bxd7 {[%emt 0:00:30]} Bxd7 {[%emt 0:00:30]} 23. b3 {[%emt 0:00:30]} Kd6 24. Rc3 {[%emt 0:00:30]} Bb5 {[%emt 0:01:00]} 25. f3 {[%emt 0:00:30]} Rhc8 {[%emt 0:09:51]} 26. Ne4+ {[%emt 0:09:48]} Ke5 {[%emt 0:01:06]} 27. Kd2 {[%emt 0:02:20]} f5 {[%emt 0:06:45]} 28. Nc5 {[%emt 0:00:28]} Ra8 {[%emt 0:00:07]} 29. Rhc1 {[%emt 0:07:59]} Ra2+ {[%emt 0:03:23]} 30. R3c2 {[%emt 0:00:48]} Rxc2+ {[%emt 0:00:15]} 31. Rxc2 {[%emt 0:00:03]} Kd5 {[%emt 0:00:08]} 32. b4 {[%emt 0:00:55]} e5 {[%emt 0:03:17]} 33. Ra2 {[%emt 0:02:54]} Kc4 {[%emt 0:00:28]} 34. Rc2+ {[%emt 0:00:11]} Kd5 {[%emt 0:00:04]} 35. Ra2 {[%emt 0:00:05]} Kc4 {[%emt 0:00:58]} 1/2-1/2

[Event "POR-chT 1st League 2017"]
[Site "Leiria"]
[Date "2017.07.19"]
[Round "4"]
[White "Trigo Urquijo, Sergio"]
[Black "Padeiro, Jose"]
[Result "1/2-1/2"]
[ECO "B10"]
[WhiteElo "2389"]
[BlackElo "2276"]
[Annotator "NA"]
[PlyCount "70"]
[EventDate "2017.??.??"]
[EventType "team-tourn"]
[EventCountry "POR"]
[SourceTitle "playchess.com"]
[Source "ChessBase"]
[SourceQuality "1"]
[TimeControl "5400+30"]

1. e4 {[%emt 0:00:00]} c6 {[%emt 0:03:38]} 2. Nc3 {[%emt 0:00:17]} d5 {[%emt 0:00:58]} 3. Qf3 {[%emt 0:00:26]} e6 {[%emt 0:03:11]} 4. d4 {[%emt 0:00:59]} Nf6 {[%emt 0:00:37] B11: Caro-Kann: Two Knights Variation} 5. e5 {[%emt 0:00:42]} Nfd7 {[%emt 0:00:11]} 6. Qg3 {[%emt 0:00:31]} (6. Nh3 Be7 7. Qg3 g6 8. Bg5 h6 9. Bxe7 Qxe7 {½-½ (9) Pilavov,G (2619)-Lastin,A (2617) Elista 2011}) 6... c5 {[%emt 0:06:39]} 7. Nb5 {[%emt 0:01:37]} cxd4 {[%emt 0:00:56]} 8. Nf3 {[%emt 0:00:41]} Nc6 {[%emt 0:03:21]} 9. Bd3 {[%emt 0:01:50]} Nb4 $146 {[%emt 0:05:38]} ({Predecessor:} 9... Nc5 10. Nbxd4 Nxd3+ 11. cxd3 Bb4+ 12. Kf1 g6 {0-1 (26) Van Riemsdijk,M (1833)-Garcia,L (2008) Sao Paulo 2013}) 10. O-O {[%emt 0:02:55]} Nxd3 {[%emt 0:03:25]} 11. cxd3 {[%emt 0:00:33]} a6 {[%emt 0:02:21]} 12. Nd6+ {[%emt 0:10:41]} Bxd6 {[%emt 0:00:06]} 13. exd6 {[%emt 0:00:13]} O-O {[%emt 0:06:07]} 14. Bh6 {[%emt 0:02:39]} Qf6 {[%emt 0:00:42]} 15. Bg5 {[%emt 0:01:11]} Qg6 {[%emt 0:00:38]} 16. Be7 {[%emt 0:01:34]} Qxg3 {[%emt 0:01:15]} 17. hxg3 {[%emt 0:01:39]} Re8 {[%emt 0:00:03]} 18. Nxd4 {[%emt 0:01:08]} e5 {[%emt 0:13:07]} 19. Nb3 {[%emt 0:06:02]} Nb8 $11 {[%emt 0:02:30]} 20. Nc5 {[%emt 0:22:17]} Bf5 {[%emt 0:19:18]} 21. f4 {[%emt 0:06:39]} exf4 {[%emt 0:05:01]} 22. Rxf4 {[%emt 0:01:29]} Bd7 {[%emt 0:04:40]} 23. Rb4 {[%emt 0:06:38]} b5 {[%emt 0:05:30]} 24. Nxd7 {[%emt 0:00:27]} Nxd7 {[%emt 0:00:03]} 25. a4 {[%emt 0:00:23]} f6 {[%emt 0:06:56]} 26. axb5 {[%emt 0:00:38]} axb5 {[%emt 0:00:04]} 27. Rc1 {[%emt 0:01:49]} Kf7 {[%emt 0:01:39]} 28. Rxb5 {[%emt 0:05:58]} Reb8 {[%emt 0:00:06]} 29. Rxb8 {[%emt 0:00:51]} Rxb8 {[%emt 0:00:03]} 30. Rc7 {[%emt 0:00:12]} Ke6 {[%emt 0:00:32]} 31. Rc2 {[%emt 0:00:35]} Ne5 {[%emt 0:01:34]} 32. Re2 {[%emt 0:11:29]} Kd7 {[%emt 0:00:26]} 33. Rc2 {[%emt 0:00:20]} Ke6 {[%emt 0:01:26]} 34. Re2 {[%emt 0:00:16]} Kd7 {[%emt 0:00:17]} 35. Rc2 {[%emt 0:02:14]} Ke6 1/2-1/2

[Event "POR-chT 1st League 2017"]
[Site "Leiria"]
[Date "2017.07.19"]
[Round "4"]
[White "Rocha, Sergio"]
[Black "Santos, Jose Alves"]
[Result "1-0"]
[ECO "D02"]
[WhiteElo "2364"]
[BlackElo "2196"]
[Annotator "NA"]
[PlyCount "82"]
[EventDate "2017.??.??"]
[EventType "team-tourn"]
[EventCountry "POR"]
[SourceTitle "playchess.com"]
[Source "ChessBase"]
[SourceQuality "1"]
[TimeControl "5400+30"]

1. d4 {[%emt 0:00:00]} d5 {[%emt 0:01:42]} 2. Nf3 {[%emt 0:00:00]} e6 {[%emt 0:00:42]} 3. c4 {[%emt 0:00:00]} c6 {[%emt 0:00:12]} 4. b3 {[%emt 0:00:21]} f5 {[%emt 0:00:35]} 5. g3 {[%emt 0:00:06]} Nf6 {[%emt 0:00:07]} 6. Bg2 {[%emt 0:00:04]} Bb4+ {[%emt 0:01:08]} 7. Bd2 {[%emt 0:01:22]} Bd6 {[%emt 0:00:09]} 8. Qc1 {[%emt 0:00:06]} Ne4 {[%emt 0:03:35]} 9. Bf4 {[%emt 0:01:35]} Qa5+ {[%emt 0:03:57]} 10. Bd2 {[%emt 0:02:57]} Nxd2 {[%emt 0:00:34]} 11. Nbxd2 {[%emt 0:00:04]} O-O {[%emt 0:00:24]} 12. e3 {[%emt 0:00:23]} Nd7 {[%emt 0:03:57]} 13. a3 {[%emt 0:00:34]} Qd8 {[%emt 0:06:12]} 14. O-O {[%emt 0:00:30]} g5 {[%emt 0:00:17]} 15. Ne1 {[%emt 0:00:49]} h5 {[%emt 0:18:27]} 16. Nd3 {[%emt 0:00:51]} Qf6 {[%emt 0:02:52]} 17. f4 {[%emt 0:01:12]} g4 {[%emt 0:06:03]} 18. h3 {[%emt 0:01:58]} gxh3 {[%emt 0:04:36]} 19. Bxh3 {[%emt 0:00:37]} c5 {[%emt 0:02:54]} 20. cxd5 {[%emt 0:02:09]} cxd4 {[%emt 0:01:31]} 21. Nc4 {[%emt 0:08:29]} Bc5 {[%emt 0:15:22]} 22. dxe6 {[%emt 0:07:34]} Qxe6 {[%emt 0:01:01]} 23. e4 {[%emt 0:00:17]} Qg6 {[%emt 0:01:07]} 24. Ra2 {[%emt 0:24:13]} fxe4 {[%emt 0:02:59]} 25. Bxd7 {[%emt 0:00:35]} exd3 {[%emt 0:01:29]} 26. Ne5 {[%emt 0:00:11]} Qd6 {[%emt 0:01:42]} 27. Rh2 {[%emt 0:06:16]} Bxd7 {[%emt 0:03:03]} 28. Nxd7 {[%emt 0:00:07]} Rf5 {[%emt 0:00:32]} 29. Qc4+ {[%emt 0:01:22]} Kg7 {[%emt 0:00:01]} 30. Ne5 {[%emt 0:00:22]} Raf8 {[%emt 0:04:38]} 31. b4 {[%emt 0:02:19]} Bb6 {[%emt 0:00:37]} 32. Qxd3 {[%emt 0:00:24]} Qe6 {[%emt 0:08:54]} 33. Re1 {[%emt 0:08:24]} Rc8 {[%emt 0:01:23]} 34. Nf3 {[%emt 0:00:47]} Rc3 {[%emt 0:00:43]} 35. Rxe6 {[%emt 0:06:26]} Rxd3 {[%emt 0:00:07]} 36. Kg2 {[%emt 0:00:31]} Rd5 {[%emt 0:00:59]} 37. Rh1 {[%emt 0:00:36]} Rxa3 {[%emt 0:00:33]} 38. Ne5 {[%emt 0:00:15]} d3 {[%emt 0:02:54]} 39. Rxh5 {[%emt 0:00:39]} Ra2+ {[%emt 0:01:27]} 40. Kh3 {[%emt 0:00:43]} Rxe5 {[%emt 0:00:32]} 41. Rhxe5 {[%emt 0:00:28]} Bg1 {[%emt 0:01:03]} 1-0

[Event "POR-chT 1st League 2017"]
[Site "Leiria"]
[Date "2017.07.19"]
[Round "4"]
[White "Hammes, Michael"]
[Black "Barrero Garcia, Carlos"]
[Result "1-0"]
[ECO "E97"]
[WhiteElo "2349"]
[BlackElo "2309"]
[Annotator "NA"]
[PlyCount "113"]
[EventDate "2017.??.??"]
[EventType "team-tourn"]
[EventCountry "POR"]
[SourceTitle "playchess.com"]
[Source "ChessBase"]
[SourceQuality "1"]
[TimeControl "5400+30"]

1. d4 Nf6 2. c4 g6 3. Nc3 Bg7 4. e4 d6 5. Nf3 {LiveBook: 28888 Games} O-O 6. Be2 e5 7. O-O Nc6 8. d5 Ne7 9. Nd2 a5 10. a3 Nd7 11. Rb1 f5 12. Qc2 Kh8 13. b4 Ng8 14. Bd3 {E97: King's Indian: Classical Main Line (6...e5 7 0-0 Nc6): 8 Be3 and 8 d5 Ne7, not 9 Ne1} (14. Nb3 a4 15. Nd2 Nh6 16. Nxa4 f4 17. Nc3 g5 18. g4 Nf6 19. h3 Nhg8 20. f3 h5 21. Rf2 Rf7 {½-½ (31) Roiz,M (2657)-Halkias,S (2566) Bursa 2010}) 14... f4 15. f3 Rf7 16. c5 $146 ({Predecessor:} 16. Na4 Bf8 17. c5 axb4 18. axb4 g5 19. Kh1 Rg7 20. Bb2 Nh6 21. Nc4 g4 {0-1 (32) Lock,G (2227)-Arakhamia Grant,K (2492) Edinburgh 2009}) 16... dxc5 17. bxc5 Nxc5 18. Be2 h5 19. Nb5 b6 20. Nc4 a4 $16 21. d6 c6 22. Nc7 Rb8 23. Bb2 Rxc7 24. dxc7 Qxc7 25. Nxb6 Rxb6 26. Qxc5 Qb7 27. Qc2 Be6 28. Ba1 Rb3 29. Rxb3 axb3 30. Qc3 Qa7+ 31. Kh1 Qxa3 32. Bb2 Qa4 33. Rc1 Ne7 34. Bc4 Bxc4 35. Qxc4 Qa2 36. Qc3 Qa4 37. Ra1 Qb5 38. Ba3 Nd5 39. exd5 e4 40. Qxc6 b2 41. Rb1 Qd3 42. Qe8+ Kh7 43. Qxe4 Qxa3 44. Rd1 Bf8 45. h3 Qb3 46. Qb1 Bd6 47. Rd2 Be5 48. Rd1 Bd6 49. Re1 Qxd5 50. Qxb2 Bc5 51. Qe5 Qd2 52. Rb1 Bd4 53. Qe7+ Kh6 54. h4 Bb2 55. Re1 Bf6 56. Qf8+ Kh7 57. Qf7+ 1-0

[Event "POR-chT 1st League 2017"]
[Site "Leiria"]
[Date "2017.07.19"]
[Round "4"]
[White "Andrade, Jose M Vieira"]
[Black "Diogo, Vasco"]
[Result "0-1"]
[ECO "B21"]
[WhiteElo "2223"]
[BlackElo "2213"]
[Annotator "NA"]
[PlyCount "108"]
[EventDate "2017.??.??"]
[EventType "team-tourn"]
[EventCountry "POR"]
[SourceTitle "playchess.com"]
[Source "ChessBase"]
[SourceQuality "1"]
[TimeControl "5400+30"]

1. e4 {[%emt 0:00:00]} c5 {[%emt 0:00:20]} 2. d4 {[%emt 0:00:00]} cxd4 {[%emt 0:00:19]} 3. c3 {[%emt 0:00:00]} d3 {[%emt 0:01:13]} 4. Bxd3 {[%emt 0:00:00]} Nc6 $14 {[%emt 0:00:05] LiveBook: 115 Games} 5. c4 {[%emt 0:00:36]} g6 {[%emt 0:00:09]} 6. Nf3 {[%emt 0:00:04]} Bg7 {[%emt 0:00:09]} 7. O-O {[%emt 0:01:02]} Nf6 {[%emt 0:01:21]} 8. Nc3 {[%emt 0:02:01]} O-O {[%emt 0:00:08]} 9. h3 {[%emt 0:00:54]} d6 {[%emt 0:05:07]} 10. Be3 {[%emt 0:00:45]} Nd7 {[%emt 0:00:36]} 11. Rc1 {[%emt 0:00:32]} Nc5 {[%emt 0:04:35]} 12. Bb1 {[%emt 0:00:06]} b6 {[%emt 0:02:29]} 13. Qe2 {[%emt 0:03:59]} Bb7 {[%emt 0:02:43]} 14. Rfd1 {[%emt 0:01:03]} Rc8 {[%emt 0:00:51]} 15. Nd5 {[%emt 0:09:42]} e6 {[%emt 0:04:09]} 16. Nc3 {[%emt 0:02:26]} Qe7 {[%emt 0:01:23]} 17. Bg5 {[%emt 0:20:26]} f6 {[%emt 0:00:54]} 18. Bf4 {[%emt 0:00:21]} Rcd8 {[%emt 0:06:27]} 19. Nb5 {[%emt 0:06:18]} e5 {[%emt 0:04:43]} 20. Be3 {[%emt 0:00:11]} f5 {[%emt 0:04:54]} 21. Bg5 {[%emt 0:02:25]} Bf6 {[%emt 0:01:10]} 22. Bh6 {[%emt 0:00:45]} Bg7 {[%emt 0:03:27]} 23. Bg5 {[%emt 0:01:17]} Bf6 {[%emt 0:00:05]} 24. Bh6 {[%emt 0:00:04]} Bg7 {[%emt 0:01:59]} 25. Bxg7 {[%emt 0:10:07]} Kxg7 {[%emt 0:00:14]} 26. exf5 {[%emt 0:00:22]} gxf5 {[%emt 0:01:14]} 27. Qd2 {[%emt 0:03:24]} Ne6 {[%emt 0:07:37]} 28. b4 {[%emt 0:25:40]} Kh8 {[%emt 0:07:21]} 29. Nxd6 {[%emt 0:00:35]} Ned4 {[%emt 0:04:12]} 30. Nxe5 {[%emt 0:09:16]} Qxe5 {[%emt 0:02:52]} 31. c5 {[%emt 0:00:32]} Ne2+ {[%emt 0:01:17]} 32. Kh1 {[%emt 0:00:26]} Nxc1 {[%emt 0:00:30]} 33. Qxc1 {[%emt 0:00:37]} Ba8 {[%emt 0:03:32]} 34. Rd3 {[%emt 0:00:31]} bxc5 {[%emt 0:02:37]} 35. bxc5 {[%emt 0:00:03]} Qf6 {[%emt 0:01:04]} 36. Qd1 {[%emt 0:00:19]} Ne5 {[%emt 0:02:39]} 37. Rg3 {[%emt 0:01:02]} Nf7 {[%emt 0:01:43]} 38. Nxf7+ {[%emt 0:00:36]} Rxf7 {[%emt 0:00:15]} 39. Qh5 {[%emt 0:00:30]} Rg8 {[%emt 0:00:41]} 40. Bd3 {[%emt 0:00:29]} Rxg3 {[%emt 0:00:38]} 41. fxg3 {[%emt 0:00:03]} Bc6 {[%emt 0:00:32]} 42. Bc4 {[%emt 0:00:52]} Rf8 {[%emt 0:00:35]} 43. Qe2 {[%emt 0:00:37]} Re8 {[%emt 0:00:21]} 44. Qd2 {[%emt 0:00:11]} Qe5 {[%emt 0:00:21]} 45. Kh2 {[%emt 0:00:12]} Qxc5 {[%emt 0:00:25]} 46. Bf7 {[%emt 0:00:37]} Re7 {[%emt 0:08:31]} 47. Qd8+ {[%emt 0:00:28]} Kg7 {[%emt 0:00:04]} 48. Bb3 {[%emt 0:00:29]} Qe5 {[%emt 0:03:44]} 49. Qg8+ {[%emt 0:00:31]} Kh6 {[%emt 0:00:09]} 50. Qc4 {[%emt 0:00:34]} Qe4 {[%emt 0:00:29]} 51. Qc1+ {[%emt 0:00:25]} f4 {[%emt 0:00:13]} 52. Qd2 {[%emt 0:00:17]} Rd7 {[%emt 0:00:54]} 53. Qf2 {[%emt 0:00:45]} Qe3 {[%emt 0:00:15]} 54. Qb2 {[%emt 0:00:46]} fxg3+ {[%emt 0:00:11]} 0-1

[Event "POR-chT 1st League 2017"]
[Site "Leiria"]
[Date "2017.07.19"]
[Round "4"]
[White "Ulyanovskyy, Viktor"]
[Black "Maisuradze, Nino"]
[Result "0-1"]
[ECO "B51"]
[WhiteElo "2219"]
[BlackElo "2266"]
[Annotator "NA"]
[PlyCount "82"]
[EventDate "2017.??.??"]
[EventType "team-tourn"]
[EventCountry "POR"]
[SourceTitle "playchess.com"]
[Source "ChessBase"]
[SourceQuality "1"]
[TimeControl "5400+30"]

1. e4 {[%emt 0:00:00]} c5 {[%emt 0:02:14]} 2. Nf3 {[%emt 0:00:00]} d6 {[%emt 0:01:10]} 3. Bb5+ {[%emt 0:00:00]} Nd7 {[%emt 0:01:40]} 4. O-O {[%emt 0:00:00]} a6 {[%emt 0:00:02]} 5. Bxd7+ {[%emt 0:03:42]} Bxd7 {[%emt 0:00:17]} 6. b3 {[%emt 0:02:10]} Nf6 {[%emt 0:01:05]} 7. Re1 {[%emt 0:00:24]} g6 {[%emt 0:01:47]} 8. Bb2 {[%emt 0:01:55]} Bg7 {[%emt 0:00:10]} 9. c4 {[%emt 0:00:47]} e5 {[%emt 0:04:27]} 10. Nc3 {[%emt 0:02:22]} b5 {[%emt 0:00:54]} 11. d3 {[%emt 0:02:25]} O-O {[%emt 0:00:46]} 12. Nd2 {[%emt 0:03:26]} b4 {[%emt 0:01:06]} 13. Nd5 {[%emt 0:00:31]} a5 {[%emt 0:03:26]} 14. a3 {[%emt 0:02:01]} h5 {[%emt 0:23:19]} 15. Qe2 {[%emt 0:04:00]} h4 {[%emt 0:12:54]} 16. axb4 {[%emt 0:10:37]} axb4 {[%emt 0:04:36]} 17. Rxa8 {[%emt 0:01:51]} Qxa8 {[%emt 0:00:03]} 18. Ra1 {[%emt 0:00:07]} Qb7 {[%emt 0:00:28]} 19. Qe1 {[%emt 0:10:33]} Ra8 {[%emt 0:04:36]} 20. f4 {[%emt 0:08:13]} Nxd5 {[%emt 0:01:43]} 21. cxd5 {[%emt 0:00:42]} Bb5 {[%emt 0:05:22]} 22. Nc4 {[%emt 0:01:30]} Bxc4 {[%emt 0:00:25]} 23. dxc4 {[%emt 0:00:09]} exf4 {[%emt 0:01:25]} 24. Bxg7 {[%emt 0:01:47]} Kxg7 {[%emt 0:00:01]} 25. Rxa8 {[%emt 0:00:53]} Qxa8 {[%emt 0:00:02]} 26. e5 {[%emt 0:00:59]} Qe8 {[%emt 0:00:41]} 27. e6 {[%emt 0:00:08]} fxe6 {[%emt 0:02:35]} 28. dxe6 {[%emt 0:00:14]} g5 {[%emt 0:00:26]} 29. g3 {[%emt 0:05:23]} hxg3 {[%emt 0:01:12]} 30. hxg3 {[%emt 0:00:01]} fxg3 {[%emt 0:00:52]} 31. Qe4 {[%emt 0:04:16]} Qf8 {[%emt 0:10:42]} 32. Qb7+ {[%emt 0:01:21]} Kh8 {[%emt 0:02:53]} 33. Kg2 {[%emt 0:01:12]} Qf2+ {[%emt 0:00:04]} 34. Kh3 {[%emt 0:00:09]} Qh2+ {[%emt 0:00:56]} 35. Kg4 {[%emt 0:00:16]} g2 {[%emt 0:00:27]} 36. Kf5 {[%emt 0:05:05]} g1=Q {[%emt 0:04:44]} 37. Qa8+ {[%emt 0:02:05]} Kg7 {[%emt 0:00:22]} 38. Qb7+ {[%emt 0:00:18]} Kh6 {[%emt 0:00:07]} 39. Kf6 {[%emt 0:00:54]} Qd4+ {[%emt 0:01:14]} 40. Kf7 {[%emt 0:00:22]} Qg7+ {[%emt 0:01:58]} 41. Ke8 {[%emt 0:00:06]} Qxb7 {[%emt 0:00:12]} 0-1